Workbook

Sheet System
A1: System
A2: System Size | C2: Filename: | D2: UPV Q12023 | I2: Input Value
A3: 100000 | B3: kWdc | I3: Model Definition
I4: Formula
A5: Single Axis Tracking, c-Si modules, central inverter | I5: Calculated
G6: Include ESS: | H6: TRUE
G7: Include Indirect: | H7: TRUE
A9: Component | B9: Description | C9: Intrinsic Unit | D9: Cost per Intrinsic Unit | E9: =CONCATENATE("Intrinsic Units per ",B3) -> Intrinsic Units per kWdc | F9: =CONCATENATE("Cost Element per ",$B$3) -> Cost Element per kWdc | G9: Distorted per Unit Cost | H9: =CONCATENATE("Price Element per ",$B$3) -> Price Element per kWdc
A10: Module | B10: Avg. Sales Price | C10: =ModuleUnit -> kWdc | D10: =ModuleMSP -> 253.1361051 | E10: 1 | F10: =E10*D10 -> 253.1361051 | G10: =ModuleMMP -> 372.2561235 | H10: =IF(G10<>"",G10*E10,D10*E10) -> 372.2561235
A11: Inverter | B11: Avg. Sales Price | C11: =InverterUnit -> kWac | D11: =InverterMSP -> 46.89972387 | E11: =1/ILR -> 0.7462686567 | F11: =E11*D11 -> 34.99979393 | G11: =InverterMMP -> 64.91911169 | H11: =IF(G11<>"",G11*E11,D11*E11) -> 48.44709828
A12: ESS | B12: Energy Storage | C12: =ESSUnit -> kWh-cap | D12: =ESSMSP -> 218.7723045 | E12: =IncludeESS*StorageDuration -> 2.4 | F12: 525.0535307 | G12: =ESSMMP-4.8495 -> 318.3285874 | H12: 763.9886097
A13: SBOS | B13: Structural BOS | C13: =SBOSUnit -> m2 | D13: =SBOSMSP -> 28.25157009 | E13: =1/ModuleEfficiency -> 4.87804878 | F13: 137.812537 | G13: =SBOSMMP -> 28.03211399 | H13: 136.7420195
A14: EBOS | B14: Electrical BOS | C14: =EBOSUnit -> kWac | D14: =EBOSMSP -> 196.0296157 | E14: =1/ILR -> 0.7462686567 | F14: 146.290758 | G14: =EBOSMMP -> 235.5398941 | H14: 175.7760404
A15: Fieldwork | B15: Labor&Related | C15: =FieldworkUnit -> m2 | D15: =FieldworkMSP -> 60.55598895 | E15: =1/ModuleEfficiency -> 4.87804878 | F15: 295.3950681 | G15: =FieldworkMMP -> 60.55598895 | H15: 295.3950681
A16: Officework | B16: Labor&Related | C16: =OfficeworkUnit -> kWdc | D16: =OfficeworkMSP -> 62.77871466 | E16: =IncludeIndirect*1 -> 1 | F16: 62.77871466 | G16: =OfficeworkMMP -> 66.09481222 | H16: 66.09481222
A17: Other | B17: Financial, etc. | C17: =OtherUnit -> kWdc | D17: =OtherMSP -> 190.6435293 | E17: =IncludeIndirect*1 -> 1 | F17: 190.6435293 | G17: =OtherMMP -> 247.2042076 | H17: 247.2042076
F18: 0 | H18: =IF(G18<>"",G18*E18,D18*E18) -> 0
F19: 0 | H19: 0
E20: MSP: | F20: =SUM(F10:F19) -> 1646.110037 | G20: MMP: | H20: =SUM(H10:H19) -> 2105.903979

Sheet Module
A1: Module
A2: Annual Production | I2: Input Value
A3: 1500000 | B3: kWdc | I3: Model Definition
I4: Formula
A5: 530 Wdc bifacial c-Si PERC module assembled in SE Asia using cells from SE Asia | I5: Calculated
A9: Cost Element | B9: Fixed Cost per Year | C9: Intrinsic Unit | D9: Cost per Intrinsic Unit | E9: =CONCATENATE("Intrinsic Units per ",B3) -> Intrinsic Units per kWdc | F9: =CONCATENATE("Cost Element per ",$B$3) -> Cost Element per kWdc | G9: Distorted per Unit Cost | H9: =CONCATENATE("Price Element per ",$B$3) -> Price Element per kWdc
A10: Cells | C10: kWdc | D10: 121.5777 | E10: =1/CellToModule -> 1.020408163 | F10: =B10/$A$3+E10*D10 -> 124.0588776 | G10: 172.55 | H10: =IF(G10<>"",B10/$A$3+G10*E10,B10/$A$3+D10*E10) -> 176.0714286
A11: Frame | C11: m | D11: 1.6023 | E11: =2*(ModuleWidth+ModuleHeight)/(ModuleWidth*ModuleHeight*ModuleEfficiency) -> 12.93155499 | F11: 20.72023056 | H11: =IF(G11<>"",B11/$A$3+G11*E11,B11/$A$3+D11*E11) -> 20.72023056
A12: Junction Box | C12: module | D12: 3.3987 | E12: =1/(ModuleEfficiency*ModuleHeight*ModuleWidth) -> 1.901699263 | F12: 6.463305286 | H12: 6.463305286
A13: Other Material | C13: m2 | D13: 9.0504 | E13: =1/ModuleEfficiency -> 4.87804878 | F13: 44.14829268 | H13: 44.14829268
A14: Labor | B14: 951646.4194 | C14: hour | D14: 2.5248 | E14: =ModuleLabor/ModuleEfficiency -> 0.5317073171 | F14: 1.97688558 | H14: 1.97688558
A15: Electricity | C15: kWh | D15: 0.0728 | E15: =IncludeIndirect*ModuleElectricity/ModuleEfficiency -> 28.24390244 | F15: 2.056156098 | H15: 2.056156098
A16: Depreciation | C16: kWdc | D16: 5.6419 | E16: =IncludeIndirect*1 -> 1 | F16: 5.6419 | H16: 5.6419
A17: Maintenance | C17: kWdc | D17: 0.8778 | E17: =IncludeIndirect*1 -> 1 | F17: 0.8778 | H17: 0.8778
A18: Profit | C18: kWdc | D18: =0.15/(1-0.15)*SUM(F11:F17) -> 14.45021827 | E18: =IncludeIndirect*1 -> 1 | F18: 14.45021827 | G18: =0.499/(1-0.499)*SUM(H11:H17) -> 81.5576857 | H18: 81.5576857
A19: Shipping | C19: kg | D19: 0.6215 | E19: =IncludeIndirect*ModuleWeight/ModuleEfficiency -> 52.68292683 | F19: 32.74243902 | H19: 32.74243902
E20: MSP: | F20: =SUM(F10:F19) -> 253.1361051 | G20: MMP: | H20: =SUM(H10:H19) -> 372.2561235

Sheet Inverter
A1: Inverter
A2: Annual Production | I2: Input Value
A3: 1000000 | B3: kWac | I3: Model Definition
I4: Formula
A5: 4 MWac utility-scale three-phase central inverter | I5: Calculated
A9: Cost Element | B9: Fixed Cost per Year | C9: Intrinsic Unit | D9: Cost per Intrinsic Unit | E9: =CONCATENATE("Intrinsic Units per ",B3) -> Intrinsic Units per kWac | F9: =CONCATENATE("Cost Element per ",$B$3) -> Cost Element per kWac | G9: Distorted per Unit Cost | H9: =CONCATENATE("Price Element per ",$B$3) -> Price Element per kWac
A10: Power Devices | C10: kWac | D10: 19.4214 | E10: 1 | F10: =B10/$A$3+E10*D10 -> 19.4214 | G10: 21.3635 | H10: =IF(G10<>"",B10/$A$3+G10*E10,B10/$A$3+D10*E10) -> 21.3635
A11: Rest of Inverter | C11: kWac | D11: 9.7107 | E11: 1 | F11: 9.7107 | G11: 11.6528 | H11: =IF(G11<>"",B11/$A$3+G11*E11,B11/$A$3+D11*E11) -> 11.6528
A12: Packaging | C12: kWac | D12: 4.8553 | E12: 1 | F12: 4.8553 | G12: 6.7975 | H12: 6.7975
A13: Labor | B13: 922514.3862 | C13: hour | D13: 38.6776 | E13: =InverterLabor -> 0.055 | F13: 3.049782386 | H13: 3.049782386
A14: Electricity | C14: kWh | D14: 0.0768 | E14: =IncludeIndirect*InverterElectricity -> 8.42 | F14: 0.646656 | H14: 0.646656
A15: Depreciation | C15: kWac | D15: 0.6797 | E15: =IncludeIndirect*1 -> 1 | F15: 0.6797 | H15: 0.6797
A16: Maintenance | C16: kWac | D16: 0.0971 | E16: =IncludeIndirect*1 -> 1 | F16: 0.0971 | H16: 0.0971
A17: Profit | C17: kWac | D17: =0.15/(1-0.15)*SUM(F10:F16) -> 6.78717148 | E17: =IncludeIndirect*1 -> 1 | F17: 6.78717148 | G17: =0.3/(1-0.3)*SUM(H10:H16) -> 18.98015931 | H17: 18.98015931
A18: Shipping | C18: kg | D18: 0.3399 | E18: =IncludeIndirect* InverterWeight -> 4.86 | F18: 1.651914 | H18: 1.651914
F19: 0 | H19: 0
E20: MSP: | F20: =SUM(F10:F19) -> 46.89972387 | G20: MMP: | H20: =SUM(H10:H19) -> 64.91911169

Sheet ESS
A1: ESS
A2: Annual Production | I2: Input Value
A3: 1000000 | B3: kWh-cap | I3: Model Definition
I4: Formula
A5: 3 MWhac, 750 kWac, ac-coupled pad-mounted battery cabinets | I5: Calculated
A9: Cost Element | B9: Fixed Cost per Year | C9: Intrinsic Unit | D9: Cost per Intrinsic Unit | E9: =CONCATENATE("Intrinsic Units per ",B3) -> Intrinsic Units per kWh-cap | F9: =CONCATENATE("Cost Element per ",$B$3) -> Cost Element per kWh-cap | G9: Distorted per Unit Cost | H9: =CONCATENATE("Price Element per ",$B$3) -> Price Element per kWh-cap
A10: Li-Ion Cells | C10: kWh-cap | D10: 87.3961 | E10: 1 | F10: =B10/$A$3+E10*D10 -> 87.3961 | G10: 116.5281 | H10: =IF(G10<>"",B10/$A$3+G10*E10,B10/$A$3+D10*E10) -> 116.5281
A11: Racks with BMS | C11: kWh-cap | D11: 29.132 | E11: 1 | F11: 29.132 | G11: 48.5534 | H11: =IF(G11<>"",B11/$A$3+G11*E11,B11/$A$3+D11*E11) -> 48.5534
A12: Rest of Container | C12: kWh-cap | D12: 36.9006 | E12: 1 | F12: 36.9006 | G12: 40.7848 | H12: 40.7848
A13: Bi- Inverter | C13: kWac | D13: 67.9747 | E13: =1/( BatteryDuration* ESS_ILR) -> 0.25 | F13: 16.993675 | G13: =D13*(1+Tariff301) -> 84.968375 | H13: 21.24209375
A14: Labor | B14: 2621882.992 | C14: hour | D14: 38.6776 | E14: =ESSLabor -> 0.188 | F14: 9.893271792 | H14: 9.893271792
A15: Electricity | C15: kWh | D15: 0.0768 | E15: =IncludeIndirect*ESSElectricity -> 36.7 | F15: 2.81856 | H15: 2.81856
A16: Depreciation | C16: kWh-cap | D16: 0.5438 | E16: =IncludeIndirect*1 -> 1 | F16: 0.5438 | H16: 0.5438
A17: Maintenance | C17: kWh-cap | D17: 0.0777 | E17: =IncludeIndirect*1 -> 1 | F17: 0.0777 | H17: 0.0777
A18: Profit | C18: kWh-cap | D18: =0.15/(1-0.15)*SUM(F10:F17) -> 32.42747767 | E18: =IncludeIndirect*1 -> 1 | F18: 32.42747767 | G18: =0.25/(1-0.25)*SUM(H10:H17) -> 80.14724185 | H18: 80.14724185
A19: Shipping | C19: kg | D19: 0.4176 | E19: =IncludeIndirect*ESSWeight -> 6.2 | F19: 2.58912 | H19: 2.58912
E20: MSP: | F20: =SUM(F10:F19) -> 218.7723045 | G20: MMP: | H20: =SUM(H10:H19) -> 323.1780874

Sheet SBOS
A1: SBOS
A2: =System!A2 -> System Size | I2: Input Value
A3: =SystemSize/ModuleEfficiency -> 487804.878 | B3: m2 | I3: Model Definition
I4: Formula
A5: Single-axis tracking installed in-the-field | I5: Calculated
A9: Cost Element | B9: Fixed Cost per System | C9: Intrinsic Unit | D9: Cost per Intrinsic Unit | E9: =CONCATENATE("Intrinsic Units per ",B3) -> Intrinsic Units per m2 | F9: =CONCATENATE("Cost Element per ",$B$3) -> Cost Element per m2 | G9: Distorted per Unit Cost | H9: =CONCATENATE("Price Element per ",$B$3) -> Price Element per m2
A10: Torque Tubes | C10: kg | D10: =2.1725+0.87/2 -> 2.6075 | E10: =TorqueTubeWeight -> 4.8 | F10: =B10/$A$3+E10*D10 -> 12.516 | G10: 2.1849 | H10: =IF(G10<>"",B10/$A$3+G10*E10,B10/$A$3+D10*E10) -> 10.48752
A11: Driven Piers | C11: pier | D11: 58.2641 | E11: =PiersPerRow/(RowLength*ModuleHeight) -> 0.05615081087 | F11: 3.27157646 | H11: =IF(G11<>"",B11/$A$3+G11*E11,B11/$A$3+D11*E11) -> 3.27157646
A12: Module Rails | C12: m | D12: 1.9421 | E12: =1/ModuleWidth -> 0.8849557522 | F12: 1.718672566 | G12: =D12*(1+Tariff301) -> 2.427625 | H12: 2.148340708
A13: Fasteners | C13: kg | D13: =0.92*2.18 + 0.08*(2.18 + 2.28/2) -> 2.2712 | E13: =FastenerWeight -> 0.2 | F13: 0.45424 | G13: 2.1849 | H13: 0.43698
A14: Slew Drive | C14: row | D14: 339.8737 | E14: =1/(ModuleHeight*RowLength) -> 0.00510461917 | F14: 1.734925804 | G14: =D14*(1+Tariff301) -> 424.842125 | H14: 2.168657255
A15: Dampers | C15: pier | D15: 6.7975 | E15: =PiersPerRow/(RowLength*ModuleHeight) -> 0.05615081087 | F15: 0.3816851369 | G15: =D15*(1+Tariff301) -> 8.496875 | H15: 0.4771064211
A16: Motor | C16: row | D16: 534.0873 | E16: =1/(ModuleHeight*RowLength) -> 0.00510461917 | F16: 2.72631227 | G16: =D16*(1+Tariff301) -> 667.609125 | H16: 3.407890337
A17: Control Electronics | C17: row | D17: 145.6602 | E17: =1/(ModuleHeight*RowLength) -> 0.00510461917 | F17: 0.7435398492 | G17: =D17*(1+Tariff301) -> 182.07525 | H17: 0.9294248115
A18: Shipping | C18: kg | D18: 0.2913 | E18: =IncludeIndirect*SBOSshippingWeight -> 10 | F18: 2.913 | H18: 2.913
A19: ESS Pad | C19: kWh-cap | D19: 3.6415 | E19: =IncludeESS*StorageDuration*ModuleEfficiency -> 0.492 | F19: =B19/$A$3+E19*D19 -> 1.791618 | H19: 1.791618
E20: MSP: | F20: =SUM(F10:F19) -> 28.25157009 | G20: MMP: | H20: =SUM(H10:H19) -> 28.03211399

Sheet EBOS
A1: EBOS
A2: =System!A2 -> System Size | I2: Input Value
A3: =SystemSize/ILR -> 74626.86567 | B3: kWac | I3: Model Definition
I4: Formula
I5: Calculated
A9: Cost Element | B9: Fixed Cost per System | C9: Intrinsic Unit | D9: Cost per Intrinsic Unit | E9: =CONCATENATE("Intrinsic Units per ",B3) -> Intrinsic Units per kWac | F9: =CONCATENATE("Cost Element per ",$B$3) -> Cost Element per kWac | G9: Distorted per Unit Cost | H9: =CONCATENATE("Price Element per ",$B$3) -> Price Element per kWac
A10: Transformers | C10: kWac | D10: 35.6382 | E10: 1 | F10: =B10/$A$3+E10*D10 -> 35.6382 | G10: =D10*(1+8.99%) -> 38.84207418 | H10: =IF(G10<>"",B10/$A$3+G10*E10,B10/$A$3+D10*E10) -> 38.84207418
A11: Switches | C11: kWac | D11: 8.3512 | E11: 1 | F11: 8.3512 | G11: =D11*(1+Tariff301+20.32%) -> 12.13596384 | H11: =IF(G11<>"",B11/$A$3+G11*E11,B11/$A$3+D11*E11) -> 12.13596384
A12: Breakers | C12: kWac | D12: 16.7024 | E12: 1 | F12: 16.7024 | G12: =D12*(1+Tariff301+20.32%) -> 24.27192768 | H12: 24.27192768
A13: Conductors | C13: kWac | D13: 14.2456 | E13: 1 | F13: 14.2456 | G13: =D13*(1+8.99%) -> 15.52627944 | H13: 15.52627944
A14: Combiner Boxes | C14: kWac | D14: 8.3512 | E14: 1 | F14: 8.3512 | G14: =D14*(1+Tariff301+20.32%) -> 12.13596384 | H14: 12.13596384
A15: Grounding | C15: kWac | D15: 10.6915 | E15: 1 | F15: 10.6915 | G15: =D15*(1+8.99%) -> 11.65266585 | H15: 11.65266585
A16: Substation | C16: kWac | D16: 29.2389 | E16: 1 | F16: 29.2389 | G16: =D16*(1+Tariff301+20.32%) -> 42.48996948 | H16: 42.48996948
A17: Transmission | B17: 679747.4425 | C17: kWac | D17: 9.7107 | E17: =IncludeIndirect*1 -> 1 | F17: 18.81931573 | G17: =D17*(1+8.99%) -> 10.58369193 | H17: 19.69230766
A18: Network Upgrade | C18: kWac | D18: 53.4087 | E18: =IncludeIndirect*1 -> 1 | F18: 53.4087 | G18: =D18*(1+8.99%) -> 58.21014213 | H18: 58.21014213
A19: Shipping | C19: kg | D19: 0.2913 | E19: =IncludeIndirect*EBOSweight -> 2 | F19: 0.5826 | H19: 0.5826
E20: MSP: | F20: =SUM(F10:F19) -> 196.0296157 | G20: MMP: | H20: =SUM(H10:H19) -> 235.5398941

Sheet Fieldwork
A1: Fieldwork
A2: =System!A2 -> System Size | I2: Input Value
A3: =SystemSize/ModuleEfficiency -> 487804.878 | B3: m2 | I3: Model Definition
I4: Formula
I5: Calculated
A9: Cost Element | B9: Fixed Cost per System | C9: Intrinsic Unit | D9: Cost per Intrinsic Unit | E9: =CONCATENATE("Intrinsic Units per ",B3) -> Intrinsic Units per m2 | F9: =CONCATENATE("Cost Element per ",$B$3) -> Cost Element per m2 | G9: Distorted per Unit Cost | H9: =CONCATENATE("Price Element per ",$B$3) -> Price Element per m2
A10: EBOS Labor | C10: hour | D10: 28.0347 | E10: =PVElectricalLabor -> 0.35 | F10: =B10/$A$3+E10*D10 -> 9.812145 | H10: =IF(G10<>"",B10/$A$3+G10*E10,B10/$A$3+D10*E10) -> 9.812145
A11: SBOS Labor | C11: hour | D11: 17.6346 | E11: =PVConstructionLabor -> 0.75 | F11: 13.22595 | H11: =IF(G11<>"",B11/$A$3+G11*E11,B11/$A$3+D11*E11) -> 13.22595
A12: ESS Labor | C12: hour | D12: 22.8395 | E12: =IncludeESS*ESSInstallLabor*StorageDuration*ModuleEfficiency -> 0.3444 | F12: 7.8659238 | H12: 7.8659238
A13: Labor Burden | C13: m2 | D13: =SUM(F10:F12)*LaborBurdenRate -> 16.68817015 | E13: 1 | F13: 16.68817015 | G13: =SUM(H10:H12)*LaborBurdenRate -> 16.68817015 | H13: 16.68817015
A14: Site Prep | C14: m2 | D14: 0.2428 | E14: =IncludeIndirect*1 -> 1 | F14: 0.2428 | H14: 0.2428
A15: Eqpmt Rental | C15: m2 | D15: 10.7789 | E15: =IncludeIndirect*1 -> 1 | F15: 10.7789 | H15: 10.7789
A16: Inspection | C16: m2 | D16: 1.9421 | E16: =IncludeIndirect*1 -> 1 | F16: 1.9421 | H16: 1.9421
F17: 0 | H17: 0
F18: 0 | H18: 0
F19: 0 | H19: 0
E20: MSP: | F20: =SUM(F10:F19) -> 60.55598895 | G20: MMP: | H20: =SUM(H10:H19) -> 60.55598895

Sheet Officework
A1: Officework
A2: =System!A2 -> System Size | I2: Input Value
A3: =SystemSize -> 100000 | B3: kWdc | I3: Model Definition
I4: Formula
A5: All costs on this sheet are Indirect costs | I5: Calculated
A9: Cost Element | B9: Fixed Cost per System | C9: Intrinsic Unit | D9: Cost per Intrinsic Unit | E9: =CONCATENATE("Intrinsic Units per ",B3) -> Intrinsic Units per kWdc | F9: =CONCATENATE("Cost Element per ",$B$3) -> Cost Element per kWdc | G9: Distorted per Unit Cost | H9: =CONCATENATE("Price Element per ",$B$3) -> Price Element per kWdc
A10: Warehousing | C10: m2 | D10: 0.6797 | E10: =1/ModuleEfficiency -> 4.87804878 | F10: =B10/$A$3+E10*D10 -> 3.315609756 | G10: 1.3595 | H10: =IF(G10<>"",B10/$A$3+G10*E10,B10/$A$3+D10*E10) -> 6.631707317
A11: Logistics | C11: kg | D11: 0.0971 | E11: =ModuleWeight/ModuleEfficiency -> 52.68292683 | F11: =B11/$A$3+E11*D11 -> 5.115512195 | H11: =IF(G11<>"",B11/$A$3+G11*E11,B11/$A$3+D11*E11) -> 5.115512195
A12: Engineering | B12: 121383.4719 | C12: m2 | D12: 2.9132 | E12: =1/ModuleEfficiency -> 4.87804878 | F12: 15.42456643 | H12: 15.42456643
A13: Permits | B13: 203924.2327 | C13: kWac | E13: =1/ILR -> 0.7462686567 | F13: 2.039242327 | H13: 2.039242327
A14: Interconnect | B14: 97106.7775 | C14: kWac | D14: 39.1729 | E14: =1/ILR -> 0.7462686567 | F14: 30.20457524 | H14: 30.20457524
A15: Outreach | B15: 194213.555 | C15: m2 | D15: 0.9711 | E15: =1/ModuleEfficiency -> 4.87804878 | F15: 6.679208721 | H15: 6.679208721
F16: 0 | H16: 0
F17: 0 | H17: 0
F18: 0 | H18: 0
F19: 0 | H19: 0
E20: MSP: | F20: =SUM(F10:F19) -> 62.77871466 | G20: MMP: | H20: =SUM(H10:H19) -> 66.09481222

Sheet Other
A1: Other
A2: Annual Installations | I2: Input Value
A3: 100000 | B3: kWdc | I3: Model Definition
I4: Formula
A5: All costs on this sheet are Indirect costs | I5: Calculated
A9: Cost Element | B9: Fixed Cost per Year | C9: Intrinsic Unit | D9: Cost per Intrinsic Unit | E9: =CONCATENATE("Intrinsic Units per ",B3) -> Intrinsic Units per kWdc | F9: =CONCATENATE("Cost Element per ",$B$3) -> Cost Element per kWdc | G9: Distorted per Unit Cost | H9: =CONCATENATE("Price Element per ",$B$3) -> Price Element per kWdc
A10: Sales Tax | C10: kWdc | D10: =(SysModuleMSP+SysInverterMSP+SysESSMSP+SysSBOSMSP+SysEBOSMSP)*SalesTaxRate -> 63.64297803 | E10: 1 | F10: =B10/$A$3+E10*D10 -> 63.64297803 | G10: =(SysModuleMMP+SysInverterMMP+SysESSMMP+SysSBOSMMP+SysEBOSMMP)*SalesTaxRate -> 86.8381737 | H10: =IF(G10<>"",B10/$A$3+G10*E10,B10/$A$3+D10*E10) -> 86.8381737
A11: Contingency | C11: kWdc | D11: =(SysModuleMSP+SysInverterMSP+SysESSMSP+SysSBOSMSP+SysEBOSMSP+SysFieldworkMSP+SysOfficeworkMSP)*ContingencyRate -> 21.83199761 | E11: 1 | F11: 21.83199761 | G11: =(SysModuleMMP+SysInverterMMP+SysESSMMP+SysSBOSMMP+SysEBOSMMP+SysFieldworkMMP+SysOfficeworkMMP)*ContingencyRate -> 27.88049657 | H11: =IF(G11<>"",B11/$A$3+G11*E11,B11/$A$3+D11*E11) -> 27.88049657
A12: Management | B12: 534087 | C12: kWdc | D12: =(SysModuleMSP+SysInverterMSP+SysESSMSP+SysSBOSMSP+SysEBOSMSP+SysFieldworkMSP+SysOfficeworkMSP)*OverheadRate -> 21.83199761 | E12: 1 | F12: 27.17286761 | G12: =(SysModuleMMP+SysInverterMMP+SysESSMMP+SysSBOSMMP+SysEBOSMMP+SysFieldworkMMP+SysOfficeworkMMP)*OverheadRate -> 27.88049657 | H12: 33.22136657
A13: Profit | B13: 194214 | C13: kWdc | D13: =( SysModuleMSP+ SysInverterMSP+ SysESSMSP+ SysSBOSMSP+ SysEBOSMSP+ SysFieldworkMSP+ SysOfficeworkMSP+SUM(F10:F12))* ProfitRate -> 76.05354601 | E13: 1 | F13: 77.99568601 | G13: =(SysModuleMMP+SysInverterMMP+SysESSMMP+SysSBOSMMP+SysEBOSMMP+SysFieldworkMMP+SysOfficeworkMMP+SUM(H10:H12))*ProfitRate -> 97.32203071 | H13: 99.26417071
F14: 0 | H14: 0
F15: 0 | H15: 0
F16: 0 | H16: 0
F17: 0 | H17: 0
F18: 0 | H18: 0
F19: =B19/$A$3+E19*D19 -> 0 | H19: 0
E20: MSP: | F20: =SUM(F10:F19) -> 190.6435293 | G20: MMP: | H20: =SUM(H10:H19) -> 247.2042076

Sheet O_M
A1: O_M | B1: Operation and Maintenance
A2: System Size | I2: Input Value
A3: 100000 | B3: kWdc | I3: Model Definition
I4: Formula
I5: Calculated
A9: Cost Element | B9: Fixed Cost per Year | C9: Intrinsic Unit | D9: Cost per Intrinsic Unit | E9: =CONCATENATE("Intrinsic Units per ",B3,"-yr") -> Intrinsic Units per kWdc-yr | F9: =CONCATENATE("Cost Element per ",$B$3,"-yr") -> Cost Element per kWdc-yr | G9: Distorted per Unit Cost | H9: =CONCATENATE("Price Element per ",$B$3,"-yr") -> Price Element per kWdc-yr
A10: Cleaning | C10: m2-yr | D10: 0.51 | E10: =IncludeIndirect/ModuleEfficiency -> 4.87804878 | F10: =B10/$A$3+E10*D10 -> 2.487804878 | H10: =IF(G10<>"",B10/$A$3+G10*E10,B10/$A$3+D10*E10) -> 2.487804878
A11: Inspection | C11: m2-yr | D11: 0.31 | E11: =IncludeIndirect/ModuleEfficiency -> 4.87804878 | F11: 1.512195122 | H11: =IF(G11<>"",B11/$A$3+G11*E11,B11/$A$3+D11*E11) -> 1.512195122
A12: New BOS | C12: m2-yr | D12: =SysSBOSMSP*PartsLossRate -> 0.275625074 | E12: =1/ModuleEfficiency -> 4.87804878 | F12: 1.344512556 | H12: 1.344512556
A13: New Modules | C13: kWdc-yr | D13: =SysModuleMSP*ModuleLossRate -> 0.2531361051 | E13: 1 | F13: 0.2531361051 | H13: 0.2531361051
A14: New Inverters | C14: kWac-yr | D14: =SysInverterMSP*InverterLossRate -> 3.149981454 | E14: =1/ILR -> 0.7462686567 | F14: 2.350732428 | H14: 2.350732428
A15: ESS | C15: kWh-cap-yr | D15: =SysESSMSP*ESSLossRate -> 13.12633827 | E15: =IncludeESS*StorageDuration -> 2.4 | F15: 31.50321184 | H15: 31.50321184
A16: Land Lease | C16: ha-yr | D16: 1287.64 | E16: =IncludeIndirect/(ModuleEfficiency*LandArea) -> 0.00162601626 | F16: 2.093723577 | H16: 2.093723577
A17: Property Tax | C17: kWdc-yr | D17: =SystemMSP*PropertyTaxRate -> 3.292220073 | E17: =IncludeIndirect*1 -> 1 | F17: 3.292220073 | H17: 3.292220073
A18: Insurance | C18: kWdc-yr | D18: =SystemMSP* InsuranceRate -> 4.115275092 | E18: =IncludeIndirect*1 -> 1 | F18: 4.115275092 | G18: =SystemMMP*InsuranceRate -> 5.264759948 | H18: 5.264759948
A19: Management | B19: 177617 | C19: kWdc-yr | E19: =IncludeIndirect*1 -> 1 | F19: 1.77617 | H19: 1.77617
E20: MSP: | F20: =SUM(F10:F19) -> 50.72898167 | G20: MMP: | H20: =SUM(H10:H19) -> 51.87846653

Sheet Factors
A1: Factors | B1: Names must not contain spaces or special characters | G1: Maximum 100 factors
A2: Save the txt parameter file to activate any change to the orange fields
A3: Component | B3: Name | C3: From | D3: To | E3: Multiply By | G3: Comments
A4: System | B4: ILR | C4: kWac | D4: kWdc | E4: 1.34 | G4: Typical Inverter Load Ratio for tracking utility-scale system
A5: System | B5: StorageDuration | C5: kWdc | D5: kWh-cap | E5: 2.4 | G5: Ratio of battery dc kWh capacity to PV dc rating
A6: System | B6: Tariff201 | C6: any | D6: any | E6: 0.13
A7: System | B7: Tariff301 | C7: any | D7: any | E7: 0.25
A8: Module | B8: ModuleEfficiency | C8: m2 | D8: kWdc | E8: 0.205 | G8: Average Q1 2023 module efficiency from the CA NEM database
A9: Module | B9: ModuleHeight | C9: module | D9: m | E9: 2.27
A10: Module | B10: ModuleWidth | C10: module | D10: m | E10: 1.13
A11: Module | B11: ModuleWeight | C11: m2 | D11: kg | E11: 10.8
A12: Module | B12: CellToModule | C12: kWdc(cells) | D12: kWdc | E12: 0.98
A13: Module | B13: ModuleLabor | C13: m2 | D13: hour | E13: 0.109
A14: Module | B14: ModuleElectricity | C14: m2 | D14: kWh | E14: 5.79
A15: Inverter | B15: InverterWeight | C15: kWac | D15: kg | E15: 4.86
A16: Inverter | B16: InverterLabor | C16: kWac | D16: hour | E16: 0.055
A17: Inverter | B17: InverterElectricity | C17: kWac | D17: kWh | E17: 8.42
A18: SBOS | B18: FastenerWeight | C18: m2 | D18: kg | E18: 0.2
A19: SBOS | B19: TorqueTubeWeight | C19: m2 | D19: kg | E19: 4.8
A20: SBOS | B20: SBOSshippingWeight | C20: m2 | D20: kg | E20: 10
A21: SBOS | B21: PiersPerRow | C21: row | D21: piers | E21: 11
A22: SBOS | B22: RowLength | C22: row | D22: m(width) | E22: 86.3
A23: EBOS | B23: EBOSweight | C23: kWac | D23: kg | E23: 2
A24: ESS | B24: BatteryDuration | C24: kWdc(battery) | D24: kWh(battery) | E24: 4 | G24: Ratio of battery dc kWh capacity to battery rated dc charge rate
A25: ESS | B25: ESS_ILR | C25: kWdc(battery) | D25: kWac(ESS) | E25: 1 | G25: Ratio of ESS ac inverter capacity to battery rated dc charge rate
A26: ESS | B26: ESSWeight | C26: kWh-cap | D26: kg | E26: 6.2
A27: ESS | B27: ESSLabor | C27: kWh-cap | D27: hour | E27: 0.188
A28: ESS | B28: ESSElectricity | C28: kWh-cap | D28: kWh | E28: 36.7
A29: Fieldwork | B29: PVElectricalLabor | C29: m2 | D29: hour | E29: 0.35
A30: Fieldwork | B30: PVConstructionLabor | C30: m2 | D30: hour | E30: 0.75
A31: Fieldwork | B31: ESSInstallLabor | C31: kWh-cap | D31: hour | E31: 0.7 | G31: Additional labor when installed with a PV system
A32: Fieldwork | B32: LaborBurdenRate | C32: any | D32: any | E32: 0.54 | G32: 42% worker's comp, insurance, liability + 12% labor overhead
A33: Other | B33: SalesTaxRate | C33: any | D33: any | E33: 0.058
A34: Other | B34: ContingencyRate | C34: any | D34: any | E34: 0.015
A35: Other | B35: OverheadRate | C35: any | D35: any | E35: 0.015 | G35: Costs of business management that are proportional to expenses
A36: Other | B36: ProfitRate | C36: any | D36: any | E36: 0.0485
A37: O_M | B37: PartsLossRate | C37: any | D37: any/yr | E37: 0.002
A38: O_M | B38: InverterLossRate | C38: any | D38: any/yr | E38: 0.09
A39: O_M | B39: ModuleLossRate | C39: any | D39: any/yr | E39: 0.001
A40: O_M | B40: ESSLossRate | C40: any | D40: any/yr | E40: 0.025
A41: O_M | B41: LandArea | C41: ha | D41: m2 | E41: 3000
A42: O_M | B42: PropertyTaxRate | C42: any | D42: any/yr | E42: 0.002
A43: O_M | B43: InsuranceRate | C43: any | D43: any/yr | E43: 0.0025

Sheet Guide
A1: GUIDE | C1: Photovoltaic System Cost Model (PVSCM) March 2023: compatible with Excel 2019+ and Office 365
A3: Load/Save | C3: You can save your Excel file under a new name in the conventional manner, creating a copy of PVSCM. However, a much more efficient approach is to use the Save button in cell E3 on the System sheet to save the data fields in a text file (suffix txt). You can then Load any previouslly saved txt file using the Load button in cell E2. You can load just one sheet from a previously saved txt file using the Copy button in cell D3 on that sheet (for example, to use the same type of module in a different type of system). The spreadsheet should be loaded with input values from a txt file (i.e., not empty) before copying values from a txt file into any single sheet.
A4: Color Code | C4: The color code shown on most of the sheets is a legend that identifies which cells are user-input fields (yellow), model-definition parameters (orange), input values calculated by a user-supplied formula (gray), or values calculated via a fixed formula (blue). The orange and blue cells are password-protected. The yellow, gray, and orange cells are stored in the txt files that are created using the Save button (see above).
A5: Fixed Cost | C5: The Fixed Cost parameter on any sheet represents a cost that is nearly the same in dollars regardless of the size (of the system, factory, or integrator) given in cell A3 on that sheet. If the cost data in dollars (y) versus the quantity of any cost element (x) is plotted, the Fixed Cost for that cost element is the y-axis intercept of a linear fit to that data.
A6: Intrinsic Unit | C6: The Intrinsic Unit for any cost element is the quantity most directly related to that cost element, meaning that it is the quantity most unaffected by system parameters other than that quantity. For example, the cost of mechanically mounting a module depends on its size but not its efficiency, so m2 is a more appropriate intrinsic unit than Wdc for that cost. If the cost data in dollars (y) versus the quantity of any cost element (x) is plotted, and the quantity (x) is expressed in the intrinsic units for that cost element, Cost per Intrinsic Unit in column D is the slope of a linear fit to that data.
A7: Factors | C7: Values entered on the Factors sheet are used in formulas on the other sheets to convert cost per intrinsic unit into cost per unit based on the system size, factory size, or integrator size. To the extent possible, these factors should be independent of the size of the system, factory, or integrator across a range of at least a factor of two of the nominal size for the type of system described on the System sheet. The values are expressed as unit conversion factors. For example, inverter loading ratio (ILR) is described as a factor that converts a value measured in ac kilowatts into a value measured in dc kilowatts, e.g., ILR = 1.3 kWdc/kWac. The Name given to each factor can be used in formulas on the other sheets. If changes are made to the list of names in orange cells (password protected), the txt file must be saved and reloaded for the modified name list to be properly recognized.
A8: System Size | C8: The System Size input parameter in cell A3 on the System sheet defines the size of the system in the units shown. The cost model is designed to allow the same cost parameters to apply across a range of system size, at least within a factor of two of the nominal value provided. The system size input on the System sheet also applies on the SBOS, EBOS, Fieldwork,and Officework sheets. The system size only changes MSP and MMP (see below) if there is at least one non-zero Fixed Cost parameter (see below) on any of these sheets. System size may also affect the annual operation and maintenance (O&M) cost on the O_M sheet if there is a non-zero fixed cost on that sheet.
A9: Annual Production | C9: The Annual Production input parameter in cell A3 on the Module, Inverter, and ESS sheets defines the size of the factories used to produce these components. The cost model is designed to allow the same cost parameters to apply across a range of factory size, at least within a factor of two of the nominal value provided. The annual production rate only changes MSP and MMP (see below) if there is at least one non-zero Fixed Cost parameter (see below) on any of these sheets. The resulting change in MSP for modules, inverters, or ESS will affect the annual operation and maintenance (O&M) cost on the O_M sheet if it affects the replacement cost of these components.
A10: Annual Installations | C10: The Annual Installations input parameter in cell A3 on the Other sheet defines the size of the system integrator that is the entity selling the complete system to a customer. The cost model is designed to allow the same cost parameters to apply across a range of system integrator size, at least within a factor of two of the nominal value provided. The annual installations parameter only changes MSP and MMP (see below) if there is at least one non-zero Fixed Cost parameter (see below) on the Other sheet.
A11: Include ESS | C11: This TRUE/FALSE selection on the System sheet allows the MSP and MMP to be calculated either with or without an associated energy storage system (ESS). The cost elements that are affected are those that have formulas that include a reference to the IncludeESS parameter.
A12: Include Indirect | C12: This TRUE/FALSE selection on the System sheet allows the MSP and MMP to be calculated either with or without indirect cost factors. The cost elements that are affected are those that have formulas that include a reference to the IncludeIndirect parameter.
A13: MSP | C13: Minimum Sutainable Price. MSP is the minimum price in a balanced, competitive market that a company can charge for its product or service and remain financially solvent for the long term, based on input costs that represent the minimum price that each input supplier can charge and remain financially solvent for the long term. MSP cannot be directly observed; instead, it must be deduced from observable factors and feedback from industry stakeholders.
A14: MMP | C14: Modeled Market Price. MMP is the actual price in the current market for the representative system being modeled. It differs from MSP due to short-term market distortions including supply-chain constraints, global financial distburbances, and limited-term tariffs or subsidies. If MMP differs from MSP for a cost item, the distorted (MMP) value should be entered in column G and documented in the Comments column for that cost item.
C16: Sheets
A17: System | C17: This is a summary sheet that pulls numbers from the subsequent sheets and generates a column chart display of those values. The only input values are the system size and any market distortions that affect MMP at the component level (e.g., import tariffs on the hardware components).
A18: Module | C18: This sheet reflects the cost to manufacture modules and ship them overseas (when that is necessary). It does not include import duties. Fixed costs are annual cost per factory, not cost per module. Changes in factory uptime can be represented by changing the Annual Production value while keeping fixed costs unchanged.
A19: Inverter | C19: This sheet reflects the cost to manufacture inverters and ship them overseas (when that is necessary). It does not include import duties. Fixed costs are annual cost per factory, not cost per inverter. Changes in factory uptime can be represented by changing the Annual Production value while keeping fixed costs unchanged.
A20: ESS | C20: This sheet reflects the cost to manufacture energy storage systems (ESS) and ship them overseas (when that is necessary). It does not include import duties. Fixed costs are annual cost per factory, not cost per ESS. Changes in factory uptime can be represented by changing the Annual Production value while keeping fixed costs unchanged.
A21: SBOS | C21: This sheet reflects the cost of structural balance-of-system (BOS) components. Only hardware costs are included on this sheet. The cost of storing, transporting, and installing these hardware components are included on subsequent sheets.
A22: EBOS | C22: This sheet reflects the cost of electrical balance-of-system (BOS) components. Only hardware costs are included on this sheet. The cost of storing, transporting, and installing these hardware components are included on subsequent sheets.
A23: Fieldwork | C23: This sheet reflects the labor and related costs to install the system that are primarily conducted in the field, rather than in an office environment. Related costs include equipment rental, site preparation, and onsite inspection. Fieldwork performed after the system is commissioned should be entered on the operation and maintenance (O_M) sheet.
A24: Officework | C24: This sheet reflects the labor and related costs to install the system that are primarily conducted in an office environment. Related costs include warehousing and jurisdictional permit fees. Officework performed after system commissioning should be entered on the operation and maintenance (O_M) sheet. Salaries of management staff should be included on the Other sheet.
A25: Other | C25: This sheet captures all system capital costs not included elsewhere, but most commonly it includes management salaries and financial costs associated with the business that is responsible for delivering the completed system to the customer.
A26: O_M | C26: This sheet does not affect the system capital cost. Rather, it calculates the annualized cost to for systen operation and maintenance (O&M). This sheet may reference hardware cost component costs to estimate the cost to repair or replace those components. All future costs should be translated into an equivalent annualized net present value.
A27: Factors | C27: This sheet provides the unit conversion factors that are used on all other sheets. For example, to convert a value having units in kWac to the corresponding value having units in kWdc, the multiplier used is that shown in the table for the inverter loading ratio (ILR). The name assigned to each factor can be used on any of the other sheets. Note that factor names cannot have spaces or special characters. If any names are changed or moved within the table, the txt file must be saved for the revision to take effect. In addition to the factors listed, the name IncludeESS is assigned to the boolean tick-box on the System sheet, a name is assigned to the size value on each sheet in the form ModuleSize, names are assigned to the MSP and MMP value on each sheet in the form ModuleMSP, and for every component MSP and MMP value on the System sheet, a name is assigned in the form SysModuleMSP. See Excel's Name Manager tab for the complete list of defined cell names.
